Cogmind - Beta 11 X7 @@@ ROGUE MODE // 2021.08.26 @ 19:01:53 Player: Luigi Panache Result: Destroyed by G-34 Mercenary with Small Laser Performance ------------- Evolutions (0) 0 Regions Visited (2) 400 Robots Destroyed (12) 60 Value Destroyed (235) 235 Prototype IDs (0) 0 Alien Tech Used (0) 0 Bonus (0) 0 TOTAL SCORE: 695 Bonus ------- None Cogmind --------- Core Integrity 0/250 Matter 299/300 Energy 90/100 System Corruption 0% Temperature Cool (6) Movement Walking (120) Location -10/Mines Parts ------- > --- POWER (1) -------- (None) > --- PROPULSION (2) --- Aluminum Leg Aluminum Leg > --- UTILITY (2) ------ Small Storage Unit > --- WEAPON (2) ------- (None) > --- INVENTORY (8) ---- Light Ion Engine Aluminum Leg Heat Sink Huge Storage Unit Improved Terrain Scanner Mining Laser Peak State ------------ > --- POWER ------------ Light Ion Engine > --- PROPULSION ------- Aluminum Leg Aluminum Leg > --- UTILITY ---------- Small Storage Unit Tractor Beam > --- WEAPON ----------- Assault Rifle Light Assault Rifle > --- INVENTORY -------- Light Ion Engine Wheel Compact Wheel Compact Wheel Heat Sink Huge Storage Unit Improved Terrain Scanner Mining Laser [Rating: 8] Favorites ----------- Power Light Ion Engine Engine Light Ion Engine Propulsion Aluminum Leg Leg Aluminum Leg Utility Small Storage Unit Device Tractor Beam Storage Small Storage Unit Weapon Light Assault Rifle Energy Gun EM Pulse Gun Ballistic Gun Light Assault Rifle Build | -11 -10 -10 ------- Run | Scr Mat Min Slots Evolved . | . . . Power . | . . . Propulsion . | . . . Utility . | . . . Weapon . | . . . Parts Attached 11 | 7 2 2 Power 1 | 1 . . Engine 1 | 1 . . Core . | . . . Reactor . | . . . Propulsion 5 | 2 1 2 Treads . | . . . Leg 5 | 2 1 2 Wheel . | . . . Hover . | . . . Flight . | . . . Utility 2 | 2 . . Device 1 | 1 . . Storage 1 | 1 . . Processor . | . . . Hackware . | . . . Protection . | . . . Artifact . | . . . Weapon 3 | 2 1 . Energy Gun 1 | . 1 . Energy Cannon . | . . . Ballistic Gun 2 | 2 . . Ballistic Cannon . | . . . Launcher . | . . . Special Weapon . | . . . Impact Weapon . | . . . Slashing Weapon . | . . . Piercing Weapon . | . . . Special Melee Weapon . | . . . Unidentified Prototypes . | . . . Parts Lost 7 | . 3 4 Power 1 | . . 1 Propulsion 2 | . . 2 Utility 1 | . 1 . Weapon 3 | . 2 1 Highest Loss Streak 2 | . 2 2 Average Slot Usage (%) 77 | . 95 47 Engine 10 | . 14 5 Leg 25 | . 28 22 Device 6 | . 10 . Storage 14 | . 14 14 Energy Gun 2 | . . 5 Ballistic Gun 16 | . 27 . Naked Turns . | . . . Heaviest Build 12 | 12 12 10 Greatest Support 20 | 20 20 20 Greatest Overweight (x) 1 | 1 . . Average Overweight (x) . | . . . Largest Inventory Capacity 8 | 8 8 8 Average Capacity 7 | 7 8 8 Most Carried 8 | 6 8 8 Average Carried 6 | 2 7 7 Final Capacity 8 | 8 8 8 Final Carried 8 | 6 8 6 Class Distribution -------------------- 100% | Mutant Dominant Class ---------------- Mutant | -10/Materials Mutant | -10/Mines Resources | -11 -10 -10 ----------- Run | Scr Mat Min Matter Collected 415 | 286 103 26 Remotely 88 | 9 79 . Salvage Created 420 | 100 265 55 Parts 19 | 4 12 3 Haulers Intercepted 1 | . 1 . Recyclers Shooed 2 | 1 1 . Parts Field Recycled . | . . . Retrieved Matter . | . . . Parts Self-Destructed . | . . . Prevented . | . . . Kills | -11 -10 -10 ------- Run | Scr Mat Min Combat Hostiles Destroyed 8 | . 5 3 Guns 8 | . 5 3 Classes Destroyed 5 | 2 2 1 Tunneler 2 | 2 . . Hauler 1 | . 1 . Recycler 1 | 1 . . Swarmer 3 | . . 3 Grunt 5 | . 5 . Best Kill Streak 3 | 2 2 3 Combat Bots Only 3 | . 2 3 Max Kills in Single Turn 1 | 1 1 1 Gunslinging . | . . . Exploded . | . . . Melee . | . . . Uniques/NPCs Destroyed . | . . . Combat | -11 -10 -10 -------- Run | Scr Mat Min Damage Taken 919 | . 363 556 Core 258 | . 22 236 Absorbed by Shields . | . . . Core Remaining (%) 100 | 100 . . Volleys Fired 43 | 5 28 10 Largest 2 | 2 2 1 Hottest 40 | 40 40 40 Shots Fired 75 | 9 56 10 Gun 75 | 9 56 10 Cannon . | . . . Launcher . | . . . Special . | . . . Kinetic 65 | 9 56 . Thermal . | . . . Explosive . | . . . Electromagnetic 10 | . . 10 Robot Hit Streak 12 | 7 12 5 Robot Miss Streak 3 | . 3 3 Penetration Max . | . . . Secondary Targets 1 | . 1 . Max Gunslinging Chain 1 | . 1 . Shots Hit Robots 45 | 7 33 5 Core Hits 24 | 6 13 5 Critical Kills . | . . . Critical Parts Destroyed . | . . . Critical Strikes . | . . . Melee Attacks . | . . . Impact . | . . . Slashing . | . . . Piercing . | . . . Sneak Attacks . | . . . Combat Hostiles . | . . . Follow-up Attacks . | . . . Damage Inflicted 582 | 75 384 123 Guns 507 | 75 368 64 Cannons . | . . . Explosions 24 | . . 24 Melee . | . . . Ramming 51 | . 16 35 Kinetic 443 | 75 368 . Thermal 24 | . . 24 Explosive . | . . . Electromagnetic 64 | . . 64 Impact . | . . . Slashing . | . . . Piercing . | . . . Highest Corruption . | . . . Average Corruption . | . . . Corruption Purged . | . . . Overload Shots . | . . . Overflow Damage . | . . . Projectiles . | . . . Explosions . | . . . Melee . | . . . Knockbacks . | . . . Impact . | . . . Kinetic . | . . . Secondary . | . . . Self-Inflicted Damage . | . . . Shots . | . . . Rammed . | . . . Targets Rammed 26 | . 3 23 Kicked 26 | . 3 23 Crushed . | . . . Highest Temperature 27 | . 27 9 Average Temperature 9 | . 9 6 Received Heat Transfer 483 | . 219 264 Siege Activations . | . . . Robots Corrupted . | . . . Combat Hostiles . | . . . Parts Fried . | . . . Impact Corruptions . | . . . Robots Melted . | . . . Combat Hostiles . | . . . Parts Melted . | . . . Heat Transferred 50 | . . 50 Parts Sabotaged . | . . . Parts Stolen . | . . . Parts Stripped . | . . . Power Chain Reactions 1 | . . 1 Missiles Intercepted . | . . . Alert | -11 -10 -10 ------- Run | Scr Mat Min Peak Influence 156 | 15 156 122 Initial 52 | . 9 52 Average 73 | 7 86 98 Maximum Alert Level . | . . . Low Security (%) 100 | 100 100 100 Level 1 . | . . . Level 2 . | . . . Level 3 . | . . . Level 4 . | . . . Level 5 . | . . . High Security . | . . . Max Security . | . . . Squads Dispatched 2 | . 2 . Investigation 1 | . 1 . Extermination . | . . . Reinforcement 1 | . 1 . Assault . | . . . Garrison . | . . . Intercept . | . . . Construction Impeded . | . . . Haulers Reinforced . | . . . Active Scanning Responses . | . . . Cargo Convoy Interrupts . | . . . Stealth | -11 -10 -10 --------- Run | Scr Mat Min Distress Signals . | . . . Communications Jammed . | . . . Distress Signals . | . . . Times Spotted 17 | . 10 7 Peak Tracking Total 5 | . 5 3 Tactical Retreats 2 | . 1 1 Traps | -11 -10 -10 ------- Run | Scr Mat Min Traps Triggered . | . . . Indirectly . | . . . Trap Hack Attempts . | . . . Triggered . | . . . Disarmed . | . . . Reprogrammed . | . . . Reused . | . . . Traps Extracted . | . . . Installed . | . . . Triggered . | . . . Machines | -11 -10 -10 ---------- Run | Scr Mat Min Machines Disabled . | . . . Max in Single Turn . | . . . Machines Sabotaged . | . . . Garrisons Compromised . | . . . Overloaded Fab Kills . | . . . Fab Network Shutdowns . | . . . Hacking | -11 -10 -10 --------- Run | Scr Mat Min Machines Accessed 1 | . 1 . Terminals 1 | . 1 . Fabricators . | . . . Repair Stations . | . . . Recycling Units . | . . . Scanalyzers . | . . . Garrison Access . | . . . Total Hacks 2 | . 2 . Successful . | . . . Failed 2 | . 2 . Catastrophic 1 | . 1 . Database Lockouts . | . . . Manual 2 | . 2 . Terminals 2 | . 2 . Fabricators . | . . . Repair Stations . | . . . Recycling Units . | . . . Scanalyzers . | . . . Garrison Access . | . . . Terminal Hacks . | . . . Fabricator Hacks . | . . . Repair Station Hacks . | . . . Recycling Unit Hacks . | . . . Scanalyzer . | . . . Garrison Access Hacks . | . . . Unauthorized Hacks . | . . . Terminals . | . . . Fabricators . | . . . Repair Stations . | . . . Recycling Units . | . . . Scanalyzers . | . . . Garrison Access . | . . . Data Cores Recovered . | . . . Used . | . . . Hacking Detections 1 | . 1 . Full Trace Events 1 | . 1 . Feedback Events . | . . . Feedback Blocked . | . . . Robot Schematics Acquired . | . . . Robots Built . | . . . Matter . | . . . Time . | . . . Total Robot Build Rating . | . . . Part Schematics Acquired . | . . . Parts Built . | . . . Matter . | . . . Time . | . . . Total Part Build Rating . | . . . Parts Repaired . | . . . Time . | . . . Parts Recycled . | . . . Recycled Matter . | . . . Retrieved Matter . | . . . Retrieved Components . | . . . Parts Scanalyzed . | . . . Part Schematics Acquired . | . . . Parts Damaged . | . . . Bothacking | -11 -10 -10 ------------ Run | Scr Mat Min Used RIF Installer . | . . . Robots Hacked . | . . . Non-combat . | . . . Combat . | . . . Robot Hacks Applied . | . . . Relay Couplers Released . | . . . Robots Rewired . | . . . Allies Hacked . | . . . Hacks Repelled . | . . . Allies | -11 -10 -10 -------- Run | Scr Mat Min Total Allies . | . . . Largest Group . | . . . Highest-Rated Group . | . . . Highest-Rated Ally . | . . . Total Orders . | . . . Ally Attacks . | . . . Total Damage . | . . . Kills . | . . . Allies Corrupted . | . . . Allies Melted . | . . . Intel | -11 -10 -10 ------- Run | Scr Mat Min Robot Analysis Total . | . . . Derelict Logs Recovered . | . . . Drone Launches . | . . . Drone Recoveries . | . . . Exploration | -11 -10 -10 ------------- Run | Scr Mat Min Turns Passed 581 | 120 287 174 Spaces Moved 333 | 77 154 102 Core 4 | 4 . . Treads . | . . . Legs 329 | 73 154 102 Wheels . | . . . Hover . | . . . Flight . | . . . Fastest Speed 50 | 50 120 120 Average Speed 119 | 118 120 120 Slowest Speed 200 | 200 120 120 Overloaded Moves . | . . . Propulsion Burnouts . | . . . Robots Hopped . | . . . Cave-ins Triggered . | . . . Exploration Rate (%) 23 | 5 33 32 Regions Visited 2 Branch Regions 1 Pre-discovered Areas . | . . . Known Exits Taken . | . . . Unknown Exits Taken 2 | 1 1 . Scrap Searched . | . . . Spaces Dug . | . . . Terrain Destroyed . | . . . Melee . | . . . Projectile . | . . . AOE . | . . . Terrain Rammed . | . . . Walls Destroyed . | . . . Machines Disabled . | . . . Actions | -11 -10 -10 --------- Run | Scr Mat Min Total 439 | 94 206 139 Wait 13 | . 11 2 Move 331 | 76 153 102 Hop . | . . . Pick Up 11 | 6 5 . Fast Attach 8 | 7 1 . Attach 2 | . . 2 Detach . | . . . Swap 1 | . 1 . Drop 4 | . 4 . Fire 43 | 5 28 10 Melee . | . . . Ram . | . . . Kick 26 | . 3 23 Crush . | . . . Escape Stasis . | . . . Rewire . | . . . Trap . | . . . Miscellaneous . | . . . Route ------- -11/Scrapyard -10/Materials (discovered 2 exits: [*Mat] / [*Min]) -10/Mines History --------- Turn | Location | Event 63 | -11/Scrapyard | Discovered new exit (range 12) 121 | -11/Scrapyard | Entered Materials 267 | -10/Materials | Discovered new exit (range 16) 294 | -10/Materials | Discovered new exit (range 16) 336 | -10/Materials | Build established: Mutant 408 | -10/Materials | Entered Mines 561 | -10/Mines | Core integrity fell below 50% 571 | -10/Mines | Core integrity fell below 20% 582 | -10/Mines | Destroyed by G-34 Mercenary with Small Laser Last Messages --------------- 00475_ Lgt. Ion Engine destroyed. 00499_ Kicked T-07 Excavator. 00501_ Kicked T-07 Excavator out of the way. 00505_ K-01 Serf collects debris. 00511_ Aluminum Leg destroyed. 00522_ K-01 Serf collects debris. 00556_ Kicked G-47 Trooper. 00560_ Kicked G-47 Trooper out of the way. 00561_ Kicked G-34 Mercenary. 00571_ Kicked G-34 Mercenary out of the way. 00573_ Acquired 2 matter. 00573_ Kicked G-34 Mercenary out of the way. 00574_ Acquired 4 matter. 00574_ Kicked G-34 Mercenary. 00575_ Kicked G-34 Mercenary out of the way. 00576_ Aluminum Leg destroyed. 00577_ Kicked G-34 Mercenary. 00581_ Acquired 4 matter. 00581_ Kicked G-34 Mercenary out of the way. 00582_ Acquired 2 matter. Map ----- +----------------------------------------------------+ | ?????????????# ###*%# #????????????? ??? | | ?????????????## ##%= #?????????????? ???? | | ?????????????## #?????????##### ????? | | ??????????#### ##????????# ??????? | | ??????????# =% ##???????# ???????? | | ?????????# ### #######?# #????????? | | ?????????## ##?## ### #????????? | | ??????????###????## ## #????????? | | ??????????????????####### % #????????? | | ????????????????????????# ## # ##????????? | | ????????????????????????## #########%#?????????? | | ?????????????????????????####????#### ##????????? | | ????????????????????????????????## ##???????? | | ????????????????????????????????# ##??????? | | ??????????????????????####??????# ##?????? | | ?????????????????????## ###????## #?????? | | ????????????????????## ##????### #?????? | | ?????????????######## ######### #?????? | | ?????????????# #?# ##?????? | | ??????????????????#### ##### ### #??????? | | ?????????????????????## # ##???# ##??????? | | ??????????????????????# ####????#########???????? | | ??????????????????????#%##??????????????????????? | | ??????????????????????#%%#??????????????????????? | | ??????????????????????##g#??????????????????????? | | ???????????????????????#@#??????????????????????? | | ???????????????????????# #??????????????????????? | | ???????????????????????#%#??????????????????????? | | ???????????????????????#%#??????????????????????? | | ???????????????????????#%#??????????????????????? | | ???????????????????????#g##?????????????????????? | | ??????????????????????##%%#######???????????????? | | ??????????????????????#%%% ## ##??????????????? | | ??????????????????????# % #??????????????? | | ??????????????????????# ##??????????????? | | ??????????????????????## ###???????????????? | | ???????????????????????### ##?????????????????? | | ?????????????????????????#####??????????????????? | | ????????????????????????????????????????????????? | | ????????????????????????????????????????????????? | | ????????????????????????????????????????????????? | | ????????????????????????????????????????????????? | | ????????????????????????????????????????????????? | | ????????????????????????????????????????????????? | | ????????????????????????????????????????????????? | | ????????????????????????????????????????????????? | | ????????????????????????????????????????????????? | | ????????????????????????????????????????????????? | | ????????????????????????????????????????????????? | | ????????????????????????????????????????????????? | +----------------------------------------------------+ Best States ------------- Heat Dissipation 25 Energy Generation 10 Energy Capacity 125 Matter Stores 300 Matter Capacity 300 Sight Range 16 Terrain Scan Density 10 Evasion (%) 55 Item Schematics ----------------- None Robot Schematics ------------------ None Fabricated ------------ Nothing Alien Tech Used ----------------- None Achievements -------------- None Challenges ------------ None Game ------ Seed FusionBeamRail Manual? 0 Play Time 00:05:50 Cumulative 413.5 hours Start 2021.08.26 @ 18:57:07 End 2021.08.26 @ 19:01:53 Sessions 1 Manual Loads 0 Difficulty Rogue Special Mode None Game No. 396 Rogue 181 Adventurer 112 Explorer 103 Win Type - Total 29 Types 21/0/5/2/0/0/0/1/0 Lore% 84 Gallery% 90 Achievement% 76 Wizard Run 0 Options --------- ASCII 0 Keyboard 0 Movement Numpad Keybinds 0 Fullscreen 1 Font 18/TerminusBold Map View 76x50 Tactical HUD 1 Map Filters NONE Filters NONE Steam 1 RUN: c4ff442f-4e63-4ee2-8760-b382de899715